lending/lending_fUSD_20241115
["ID","MTS","AMOUNT","RATE_DAILY","PERIOD"]
[342258286,1731670232131,-150.77209339,9e-05,2]
[342258287,1731670232141,-300.0,9e-05,3]
[342258288,1731670232150,-553.43,9.002e-05,2]
[342258289,1731670232160,-1000.0,9.063e-05,2]
[342258290,1731670232171,-600.0,9.1e-05,3]
[342258291,1731670232180,-160.0,9.144e-05,2]
[342258292,1731670232189,-900.0,9.2e-05,3]
[342258293,1731670232198,-282.68,9.232e-05,2]
[342258294,1731670232208,-459.9,9.252e-05,2]
[342258295,1731670232217,-1200.0,9.3e-05,3]
[342258296,1731670232226,-447.27,9.378e-05,2]
[342258297,1731670232235,-1500.0,9.4e-05,3]
[342258298,1731670232244,-300.0,9.5e-05,3]
[342258299,1731670232254,-300.0,9.6e-05,3]
[342258300,1731670232267,-300.0,9.7e-05,3]
[342258301,1731670232280,-563.0,9.8e-05,2]
[342258302,1731670232292,-300.0,9.8e-05,3]
[342258303,1731670232309,-150.0,9.899e-05,2]
[342258304,1731670232323,-42602.7131,9.9e-05,2]
[342258305,1731670232336,-9077.8194,9.9e-05,2]
[342258306,1731670232346,-3240.9849,9.9e-05,2]
[342258307,1731670232357,-339.0,9.9e-05,3]
[342258309,1731670232366,-187.7660689,9.992e-05,2]
[342258311,1731670232376,-243.0980359,9.993e-05,2]
[342258312,1731670232388,-298.4300028,9.993e-05,2]
[342258315,1731670232398,-353.7619698,9.993e-05,2]
[342258316,1731670232407,-1109.8,9.999e-05,2]
[342258318,1731670232416,-570.07,9.999e-05,2]
[342258319,1731670232426,-84437.41115681,0.0001,2]
[342258320,1731670232438,-524.7693386,0.0001,2]
[342258321,1731670232589,-461.72,0.0001,2]
[342258322,1731670232614,-44569.16111036,0.0001,2]
[342258330,1731670238143,-1788.7546502,0.0001,2]
[342258331,1731670238179,-2296518.32124895,0.0001,2]
[342258334,1731670239981,-6445.45635,0.0001,2]
[342258335,1731670239993,-9009.94557251,0.0001,2]
[342258336,1731670240062,-22131.65198842,0.0001,2]
[342258337,1731670240134,-3695.53819691,0.0001,2]
[342258338,1731670240146,-5301.37095855,0.0001,2]
[342258366,1731670243094,-3175.17976102,0.0001,2]
[342258367,1731670243105,-2215.29506985,0.0001,2]
[342258368,1731670243116,-10310.29951114,0.0001,2]
[342258369,1731670243223,-2210.21688893,0.0001,2]
[342258382,1731670246084,-4212.1934055,0.0001,2]
[342258383,1731670246096,-750.86212621,0.0001,2]
[342258388,1731670246490,-772.66331998,0.0001,2]
[342258402,1731670920477,191.868,0.000125,60]
[342258989,1731671432300,-856.11,8.219e-05,2]
[342258990,1731671432310,-250.0,8.605e-05,2]
[342258991,1731671432320,-4199.78793906,8.629e-05,2]
[342258992,1731671432331,-250.0,8.629e-05,2]
[342258993,1731671432340,-1000.0,8.65e-05,2]
[342258994,1731671432350,-1852.42,8.67e-05,2]
[342258995,1731671432360,-256.4,8.673e-05,2]
[342258996,1731671432372,-445.85,8.68e-05,2]
[342258997,1731671432382,-250.0,8.684e-05,2]
[342258998,1731671432391,-5519.1,8.692e-05,2]
[342258999,1731671432401,-150.0,8.74e-05,2]
[342259000,1731671432411,-167.01,8.938e-05,2]
[342259001,1731671432421,-763.3,9.441e-05,2]
[342259002,1731671432430,-242.23,9.525e-05,2]
[342259003,1731671432440,-242.23,9.528e-05,2]
[342259004,1731671432449,-242.23,9.53e-05,2]
[342259005,1731671432458,-242.23,9.533e-05,2]
[342259006,1731671432468,-242.23,9.535e-05,2]
[342259007,1731671432477,-242.23,9.538e-05,2]
[342259008,1731671432486,-242.23,9.54e-05,2]
[342259009,1731671432496,-242.23,9.543e-05,2]
[342259010,1731671432506,-242.23,9.545e-05,2]
[342259011,1731671432515,-242.23,9.548e-05,2]
[342259012,1731671432524,-730.91,9.55e-05,2]
[342259013,1731671432534,-242.23,9.55e-05,2]
[342259014,1731671432544,-242.23,9.553e-05,2]
[342259015,1731671432554,-150.0,9.553e-05,2]
[342259016,1731671432563,-242.23,9.555e-05,2]
[342259017,1731671432573,-242.23,9.558e-05,2]
[342259018,1731671432583,-242.23,9.56e-05,2]
[342259019,1731671432963,-242.23,9.563e-05,2]
[342259020,1731671432995,-242.23,9.565e-05,2]
[342259021,1731671433004,-242.23,9.568e-05,2]
[342259022,1731671433014,-242.23,9.57e-05,2]
[342259023,1731671433024,-242.23,9.573e-05,2]
[342259024,1731671433035,-150.43,9.578e-05,2]
[342259025,1731671433047,-433.23,9.578e-05,2]
[342259026,1731671433064,-433.23,9.578e-05,2]
[342259027,1731671433074,-362.4,9.578e-05,2]
[342259028,1731671433084,-433.23,9.578e-05,2]
[342259029,1731671433094,-362.4,9.578e-05,2]
[342259030,1731671433104,-433.23,9.578e-05,2]
[342259031,1731671433115,-362.4,9.578e-05,2]
[342259032,1731671433126,-433.23,9.578e-05,2]
[342259033,1731671433136,-398.66,9.578e-05,2]
[342259034,1731671433146,-8548.0,9.703e-05,2]
[342259035,1731671433156,-1000.0,9.731e-05,2]
[342259036,1731671433165,-445.85,9.766e-05,2]
[342259037,1731671433175,-2814.665,9.9e-05,2]
[342259038,1731671433184,-166.74,9.927e-05,2]
[342259039,1731671433194,-500.0,9.973e-05,2]
[342259040,1731671433203,-3005.1301778,9.992e-05,2]
[342259041,1731671433213,-325.0364006,9.992e-05,2]
[342259042,1731671433223,-873.51984141,9.992e-05,2]
[342259043,1731671433232,-3859.2739178,9.993e-05,2]
[342259044,1731671433243,-4713.4176577,9.993e-05,2]
[342259045,1731671433252,-5567.5613976,9.993e-05,2]
[342259046,1731671433261,-417.4210198,9.993e-05,2]
[342259047,1731671433271,-509.8056389,9.993e-05,2]
[342259048,1731671433280,-602.190258,9.993e-05,2]
[342259049,1731671433290,-546.32,9.999e-05,2]
[342259050,1731671433300,-1045.427,9.999e-05,2]
[342259051,1731671433309,-174.662,9.999e-05,2]
[342259052,1731671433319,-43824.80944633,0.0001,2]
[342259053,1731671433341,-7440.66768773,0.0001,2]
[342259054,1731671433354,-800.66888583,0.0001,2]
[342259055,1731671433368,-811.035,0.0001,2]
[342259056,1731671433379,-830.2,0.0001,2]
[342259057,1731671433392,-835.59,0.0001,2]
[342259058,1731671433409,-19926749.5210981,0.0001,2]
[342259059,1731671433421,-550.2330322,0.0001,2]
[342259060,1731671433433,-1108229.64893054,0.0001,2]
[342259080,1731671438429,-2237.16,0.0001,2]
[342259081,1731671438443,-140056.03134501,0.0001,2]
[342259082,1731671438455,-6365.94999999,0.0001,2]
[342259083,1731671438518,-2474492.67773108,0.0001,2]
[342259096,1731671441610,-319.81659316,0.0001,2]
[342259097,1731671441623,-867.74640596,0.0001,2]
[342259098,1731671441634,-958.12353403,0.0001,2]
[342259099,1731671441646,-310.05,0.0001,2]
[342259100,1731671441657,-2219.80986666,0.0001,2]
[342259101,1731671441669,-372.37,0.0001,2]
[342259102,1731671441680,-1023.25,0.0001,2]
[342259104,1731671443210,-31007.45960045,0.0001,2]
[342259105,1731671443222,-495.374095,0.0001,2]
[342259106,1731671443277,-322.5100008,0.0001,2]
[342259107,1731671443446,-3061.86276847,0.0001,2]
[342259108,1731671443458,-2994.49775928,0.0001,2]
[342259109,1731671443469,-1498.92866,0.0001,2]
[342259110,1731671443481,-4998.62378509,0.0001,2]
[342259111,1731671443509,-5990.60120004,0.0001,2]
[342259112,1731671443521,-1476.66338,0.0001,2]
[342259122,1731671446252,-65886.98044269,0.0001,2]
[342259123,1731671446264,-410.21500136,0.0001,2]
[342259124,1731671446274,-2387203.46592494,0.0001,2]
[342259125,1731671446461,-2854.1998,0.0001,2]
[342259126,1731671446472,-31845.4559998,0.0001,2]
[342259127,1731671446483,-2060.075,0.0001,2]
[342259128,1731671446543,-2904.60091472,0.0001,2]
[342259129,1731671446554,-524.98442595,0.0001,2]
[342259130,1731671446565,-1113.70970627,0.0001,2]
[342259153,1731671949696,150.0,7.121e-05,2]
[342259154,1731671949718,50.0,7.121e-05,2]
[342259187,1731672632135,-380.38427608,8.219e-05,2]
[342259188,1731672632147,-268.10751173,8.219e-05,2]
[342259189,1731672632158,-258.80821219,8.219e-05,2]
[342259190,1731672632169,-150.0,8.219e-05,2]
[342259191,1731672632179,-162.70546902,9.137e-05,2]
[342259192,1731672632190,-452.09450642,9.137e-05,2]
[342259193,1731672632268,-746.39002456,9.137e-05,2]
[342259194,1731672632277,-5935.03,9.138e-05,2]
[342259195,1731672632289,-23900.0,9.164e-05,2]
[342259196,1731672632298,-250.0,9.202e-05,2]
[342259197,1731672632307,-185.99,9.295e-05,2]
[342259198,1731672632316,-250.0,9.335e-05,2]
[342259199,1731672632325,-362.4,9.34e-05,2]
[342259200,1731672632334,-250.0,9.435e-05,2]
[342259201,1731672632343,-162.21,9.478e-05,2]
[342259202,1731672632353,-1000.0,9.525e-05,2]
[342259203,1731672632362,-362.4,9.578e-05,2]
[342259204,1731672632372,-532.49,9.72e-05,2]
[342259205,1731672632389,-202.195,9.9e-05,2]
[342259206,1731672632401,-5000.0,9.9e-05,2]
[342259207,1731672632411,-664.16839684,9.9e-05,2]
[342259208,1731672632421,-150.0,9.972e-05,2]
[342259209,1731672632431,-500.21366048,9.973e-05,2]
[342259210,1731672632441,-500.0,9.973e-05,2]
[342259211,1731672632451,-500.49023213,9.973e-05,2]
[342259212,1731672632461,-627.13642484,9.973e-05,2]
[342259213,1731672632471,-500.0,9.973e-05,2]
[342259214,1731672632480,-845.39647007,9.992e-05,2]
[342259215,1731672632490,-1780.6628193,9.992e-05,2]
[342259216,1731672632500,-692.5267881,9.992e-05,2]
[342259217,1731672632510,-732.90347082,9.992e-05,2]
[342259218,1731672632519,-813.5778974,9.992e-05,2]
[342259219,1731672632529,-875.8252563,9.992e-05,2]
[342259220,1731672632540,-246.9223956,9.992e-05,2]
[342259221,1731672632550,-283.9009835,9.992e-05,2]
[342259222,1731672632561,-2409.2582483,9.993e-05,2]
[342259223,1731672632571,-3037.8536772,9.993e-05,2]
[342259224,1731672632582,-936.997088,9.993e-05,2]
[342259225,1731672632592,-1181.4673879,9.993e-05,2]
[342259226,1731672632602,-1446.328,9.993e-05,2]
[342259227,1731672632612,-166.627,9.993e-05,2]
[342259228,1731672632622,-1100.7806974,9.993e-05,2]
[342259229,1731672632632,-1387.9834974,9.993e-05,2]
[342259230,1731672632643,-1215.1213399,9.993e-05,2]
[342259231,1731672632652,-1554.4174235,9.993e-05,2]
[342259232,1731672632662,-246.9223956,9.993e-05,2]
[342259233,1731672632672,-246.9223956,9.993e-05,2]
[342259234,1731672632682,-393.8846716,9.993e-05,2]
[342259235,1731672632692,-503.8683598,9.993e-05,2]
[342259236,1731672632702,-585.47,9.999e-05,2]
[342259237,1731672632712,-368241.2905128,0.0001,2]
[342259238,1731672632726,-403967.7754399,0.0001,2]
[342259239,1731672632838,-814.7390855,0.0001,2]
[342259240,1731672632850,-845.6,0.0001,2]
[342259241,1731672632861,-821.37,0.0001,2]
[342259242,1731672632874,-2019.03,0.0001,2]
[342259243,1731672632886,-2066.849,0.0001,2]
[342259249,1731672637436,-2932706.74680027,0.0001,2]
[342259250,1731672637447,-70559.3213575,0.0001,2]
[342259251,1731672637595,-5120.80915174,0.0001,2]
[342259252,1731672637607,-2871.91256363,0.0001,2]
[342259344,1731672639448,-838.68893181,0.0001,2]
[342259345,1731672639504,-18464.8224,0.0001,2]
[342259346,1731672639717,-4904.10059885,0.0001,2]
[342259347,1731672639772,-465.56999999,0.0001,2]
[342259348,1731672639786,-4947.51928918,0.0001,2]
[342259349,1731672639800,-992.13677629,0.0001,2]
[342259350,1731672639811,-2249.11999217,0.0001,2]
[342259406,1731672643708,-5957.58650489,0.0001,2]
[342259407,1731672643720,-4000.79814413,0.0001,2]
[342259408,1731672643732,-3346.24941687,0.0001,2]
[342259409,1731672643750,-3105.05632826,0.0001,2]
[342259410,1731672643761,-5323.52451797,0.0001,2]
[342259411,1731672643774,-3108.71793027,0.0001,2]
[342259412,1731672643791,-804.99791026,0.0001,2]
[342259413,1731672643806,-446.60000232,0.0001,2]
[342259414,1731672643817,-25156.77113897,0.0001,2]
[342259415,1731672643847,-7299.75089157,0.0001,2]
[342259424,1731672645356,-3460.76083412,0.0001,2]
[342259426,1731672645368,-2479.626058,0.0001,2]
[342259441,1731672645571,-8865.69949501,0.0001,2]
[342259446,1731672645625,-2531.52,0.0001,2]
[342259451,1731672645680,-6543.72268004,0.0001,2]
[342259456,1731672645737,-8997.87813322,0.0001,2]
[342259457,1731672645749,-1697.08890394,0.0001,2]
[342259467,1731673295807,30000.0,7.12e-05,2]
[342259468,1731673322771,150.0,7e-05,2]
[342259469,1731673322792,150.0,7e-05,2]
[342259470,1731673322817,150.0,7e-05,2]
[342259471,1731673322837,150.0,7e-05,2]
[342259472,1731673322859,150.0,7e-05,2]
[342259473,1731673322880,150.0,7e-05,2]
[342259474,1731673322900,150.0,7e-05,2]
[342259475,1731673322919,150.0,7e-05,2]
[342259476,1731673322939,150.0,7e-05,2]
[342259477,1731673322959,150.0,7e-05,2]
[342259478,1731673322978,150.0,7e-05,2]
[342259479,1731673322997,150.0,7e-05,2]
[342259480,1731673323017,150.0,7e-05,2]
[342259481,1731673323041,150.0,7e-05,2]
[342259482,1731673323066,150.0,7e-05,2]
[342259483,1731673323087,150.0,7e-05,2]
[342259484,1731673323107,150.0,7e-05,2]
[342259485,1731673323128,150.0,7e-05,2]
[342259486,1731673323150,150.0,7e-05,2]
[342259487,1731673323171,150.0,7e-05,2]
[342259488,1731673323193,150.0,7e-05,2]
[342259489,1731673323213,150.0,7e-05,2]
[342259490,1731673323235,150.0,7e-05,2]
[342259491,1731673323257,150.0,7e-05,2]
[342259492,1731673323278,150.0,7e-05,2]
[342259493,1731673323306,150.0,7e-05,2]
[342259494,1731673323329,150.0,7e-05,2]
[342259495,1731673323352,150.0,7e-05,2]
[342259496,1731673323376,10127.28236082,7e-05,2]
[342259499,1731673462898,-150.0,7.159e-05,2]
[342259500,1731673556381,350.0,6.94e-05,2]
[342259501,1731673556404,29798.7805876,6.94e-05,2]
[342259502,1731673591499,-300.0,7.998e-05,2]
[342259503,1731673591519,-3013.49758998,7.999e-05,2]
[342259505,1731673637418,-10133.78006582,7.999e-05,2]
[342259506,1731673637439,-884.4,8.219e-05,2]
[342259507,1731673637463,-1247.15,8.893e-05,2]
[342259508,1731673637483,-1000.0,8.911e-05,2]
[342259509,1731673637503,-250.0,8.955e-05,2]
[342259510,1731673637525,-800.0,8.98e-05,2]
[342259511,1731673637547,-5772.07,9.125e-05,2]
[342259512,1731673637568,-20454.32,9.386e-05,2]
[342259513,1731673637588,-3796.55,9.401e-05,2]
[342259514,1731673637608,-193.43,9.555e-05,2]
[342259515,1731673637627,-150.0,9.61e-05,2]
[342259516,1731673637647,-1925.45,9.638e-05,2]
[342259517,1731673637667,-225.98,9.64e-05,2]
[342259518,1731673637687,-1048.85,9.67e-05,2]
[342259519,1731673638070,-166.66,9.719e-05,2]
[342259520,1731673638092,-479.3,9.725e-05,2]
[342259521,1731673638113,-299.99,9.725e-05,2]
[342259522,1731673638135,-150.99,9.725e-05,2]
[342259523,1731673638158,-150.99,9.725e-05,2]
[342259524,1731673638181,-150.0,9.799e-05,2]
[342259525,1731673638204,-967.89,9.8e-05,2]
[342259526,1731673638225,-4574.2277,9.8e-05,2]
[342259527,1731673638246,-1063.2932,9.8e-05,2]
[342259528,1731673638274,-6579.0,9.801e-05,2]
[342259529,1731673638295,-983.1241,9.9e-05,2]
[342259530,1731673638316,-83590.38754691,9.9e-05,2]
[342259531,1731673685856,200.8906249,0.0002,60]
[342259569,1731673831871,-162.21,9.505e-05,2]
[342259570,1731673831887,-300.0,9.799e-05,2]
[342259571,1731673831898,-98889.09962915,9.8e-05,2]
[342259572,1731673831911,-100984.19747085,9.8e-05,2]
[342259573,1731673831922,-16409.61245309,9.9e-05,2]
[342259574,1731673831940,-4611.30055461,9.9e-05,2]
[342259575,1731673831961,-1000.0,9.9e-05,2]
[342259576,1731673831980,-23351.8718,9.9e-05,2]
[342259577,1731673832001,-1780.218,9.9e-05,2]
[342259578,1731673832022,-5000.0,9.9e-05,2]
[342259580,1731673832034,-3656.57952154,9.9e-05,2]
[342259582,1731673832044,-500.0,9.95e-05,2]
[342259584,1731673832054,-500.0,9.95e-05,2]
[342259586,1731673832064,-500.0,9.95e-05,2]
[342259589,1731673832074,-500.0,9.95e-05,2]
[342259591,1731673832087,-467.1947,9.95e-05,2]
[342259593,1731673832098,-1000.0,9.95e-05,2]
[342259595,1731673832108,-1000.0,9.95e-05,2]
[342259597,1731673832118,-976.7435,9.95e-05,2]
[342259599,1731673832132,-500.0,9.973e-05,2]
[342259601,1731673832143,-500.0,9.973e-05,2]
[342259603,1731673832152,-500.0,9.973e-05,2]
[342259605,1731673832162,-496.11691074,9.973e-05,2]
[342259607,1731673832171,-161.90456273,9.973e-05,2]
[342259609,1731673832180,-500.0,9.973e-05,2]
[342259611,1731673832189,-500.0,9.973e-05,2]
[342259613,1731673832199,-15470.83694782,9.98e-05,2]
[342259615,1731673832214,-649.32687009,9.98e-05,2]
[342259617,1731673832226,-359873.49030581,9.98e-05,2]
[342259619,1731673832236,-224746.04574341,9.98e-05,2]
[342259622,1731673832246,-1808.304,9.993e-05,2]
[342259623,1731673832255,-176.17,9.993e-05,2]
[342259626,1731673832266,-1314.66865468,9.999e-05,2]
[342259628,1731673832276,-509.73147336,9.999e-05,2]
[342259629,1731673832286,-561.07,9.999e-05,2]
[342259631,1731673832297,-85936.10322931,9.999e-05,2]
[342259633,1731673832307,-8265.40224138,9.999e-05,2]
[342259635,1731673832316,-219774.79911184,0.0001,2]
[342259659,1731673837715,-3489537.87971568,0.0001,2]
[342259660,1731673837727,-1243.14,0.0001,2]
[342259661,1731673837738,-1231.879605,0.0001,2]
[342259662,1731673837749,-1254.705,0.0001,2]
[342259663,1731673837831,-271459.25521819,0.0001,2]
[342259664,1731673837843,-417.75551658,0.0001,2]
[342259665,1731673837894,-3244.76992307,0.0001,2]
[342259666,1731673837905,-2261.14920989,0.0001,2]
[342259667,1731673837957,-1151.96070059,0.0001,2]
[342259668,1731673837968,-271.962,0.0001,2]
[342259675,1731673838195,-217790.16988612,0.0001,2]
[342259678,1731673838206,-224911.09963602,0.0001,2]
[342259680,1731673838217,-63250.65221144,0.0001,2]
[342259835,1731673839679,-1413.6876,0.0001,2]
[342259837,1731673839691,-4405.87833759,0.0001,2]
[342259840,1731673839702,-624.63745482,0.0001,2]
[342259845,1731673839741,-311.11100001,0.0001,2]
[342259847,1731673839752,-5890.1993328,0.0001,2]
[342259849,1731673839763,-751.09499997,0.0001,2]
[342259914,1731673842660,-423.22158782,9.999e-05,2]
[342259915,1731673842725,-86.50988554,9.999e-05,2]
[342259916,1731673842734,-6110.49011446,0.0001,2]
[342259917,1731673842745,-22643.25,0.0001,2]
[342259918,1731673842756,-9156.04890843,0.0001,2]
[342259919,1731673842767,-3614.4,0.0001,2]
[342259920,1731673842778,-6142.86081683,0.0001,2]
[342259921,1731673842793,-700.4940275,0.0001,2]
[342259922,1731673842803,-18320.22122077,0.0001,2]
[342259923,1731673842843,-4452.705,0.0001,2]
[342259924,1731673842959,-9785.08404589,0.0001,2]
[342259925,1731673842988,-7013.19462855,0.0001,2]
[342259926,1731673843000,-18007.50000002,0.0001,2]
[342259927,1731673843020,-970.41359534,0.0001,2]
[342259928,1731673843031,-3015.70723088,0.0001,2]
[342259979,1731673846371,-4499.15482917,0.0001,2]
[342259980,1731673846416,-66241.2935994,0.0001,2]
[342259981,1731673846427,-441.32249644,0.0001,2]
[342259982,1731673846474,-1564.969329,0.0001,2]
[342259983,1731673846485,-22715.14086739,0.0001,2]
[342259996,1731675031931,-449.1,8.219e-05,2]
[342259997,1731675032026,-495.81,8.219e-05,2]
[342259998,1731675032035,-410.04184932,8.857e-05,2]
[342259999,1731675032046,-495.88816813,8.857e-05,2]
[342260000,1731675032086,-94.06998255,8.857e-05,2]
[342260001,1731675032095,-221.71797974,8.875e-05,2]
[342260002,1731675032143,-28.28202026,8.875e-05,2]
[342260003,1731675032153,-250.0,8.878e-05,2]
[342260004,1731675032162,-1900.0,9e-05,3]
[342260005,1731675032172,-3800.0,9.1e-05,3]
[342260006,1731675032182,-160.0,9.151e-05,2]
[342260007,1731675032192,-820.13,9.178e-05,2]
[342260008,1731675032201,-5700.0,9.2e-05,3]
[342260009,1731675032211,-7600.0,9.3e-05,3]
[342260010,1731675032220,-9500.0,9.4e-05,3]
[342260011,1731675032230,-1900.0,9.5e-05,3]
[342260012,1731675032239,-1900.0,9.6e-05,3]
[342260013,1731675032248,-880.62,9.67e-05,2]
[342260014,1731675032258,-3734.1,9.67e-05,2]
[342260015,1731675032267,-1900.0,9.7e-05,3]
[342260016,1731675032278,-1133.0,9.7e-05,2]
[342260017,1731675032287,-3369.0,9.8e-05,2]
[342260018,1731675032297,-317.94474909,9.8e-05,3]
[342260019,1731675032314,-1054.34457799,9.8e-05,3]
[342260020,1731675032328,-527.71067292,9.8e-05,3]
[342260021,1731675032337,-2404.1223,9.88e-05,2]
[342260022,1731675032346,-748.81887973,9.9e-05,2]
[342260023,1731675032361,-701.26254607,9.9e-05,2]
[342260024,1731675032373,-349.57893753,9.9e-05,2]
[342260043,1731675037871,-852.813508,8.768e-05,2]
[342260044,1731675037881,-3200.33963667,9.9e-05,2]
[342260045,1731675037890,-543.91144063,9.9e-05,3]
[342260046,1731675037902,-849.43,9.9e-05,3]
[342260047,1731675037929,-525.65855937,9.9e-05,3]
[342260048,1731675037938,-9337.0,9.9e-05,2]
[342260049,1731675037947,-1000.0,9.964e-05,2]
[342260050,1731675037956,-150.0,9.972e-05,2]
[342260051,1731675037965,-501.77078083,9.973e-05,2]
[342260052,1731675037974,-162.89222693,9.973e-05,2]
[342260053,1731675037983,-500.0,9.973e-05,2]
[342260054,1731675037992,-6888.6313632,9.989e-05,2]
[342260055,1731675038001,-1001.3555979,9.991e-05,2]
[342260056,1731675038012,-1871.7127733,9.991e-05,2]
[342260057,1731675038021,-1446.643,9.992e-05,2]
[342260058,1731675038030,-1376.7572549,9.993e-05,2]
[342260059,1731675038039,-1752.1589118,9.993e-05,2]
[342260060,1731675038048,-2127.5605688,9.993e-05,2]
[342260061,1731675038059,-2573.4056364,9.993e-05,2]
[342260062,1731675038068,-3275.0984994,9.993e-05,2]
[342260063,1731675038078,-3976.7913625,9.993e-05,2]
[342260064,1731675038087,-537.69,9.998e-05,2]
[342260065,1731675038097,-254.86573668,9.999e-05,2]
[342260066,1731675038107,-168620.80115295,9.999e-05,2]
[342260067,1731675038116,-9415.27,9.999e-05,2]
[342260068,1731675038125,-3826286.43416994,0.0001,2]
[342260069,1731675038141,-1003.66463571,0.0001,2]
[342260070,1731675038152,-10004.48577517,0.0001,2]
[342260071,1731675038166,-851.37706832,0.0001,2]
[342260072,1731675038186,-68887.6276271,0.0001,2]
[342260099,1731675039830,-4179.9248178,0.0001,2]
[342260100,1731675040425,-14291.44191748,0.0001,2]
[342260101,1731675040484,-706.26472916,0.0001,2]
[342260102,1731675040516,-250.0,0.0001,2]
[342260103,1731675040599,-89840.611528,0.0001,2]
[342260104,1731675040611,-895.62937453,0.0001,2]
[342260105,1731675040649,-850.65939623,0.0001,2]
[342260114,1731675042827,-954.45487023,0.0001,2]
[342260115,1731675042849,-439.12978559,0.0001,2]
[342260117,1731675042863,-741.65,0.0001,2]
[342260119,1731675042877,-1273.2314635,0.0001,2]
[342260120,1731675042889,-14419.69651981,0.0001,2]
[342260121,1731675042901,-5986.5011092,0.0001,2]
[342260122,1731675042935,-8420.26807847,0.0001,2]
[342260144,1731675043371,-1903.5001,0.0001,2]
[342260147,1731675043387,-17246.92333742,0.0001,2]
[342260149,1731675043399,-2987.23991469,0.0001,2]
[342260151,1731675043410,-2985.93570175,0.0001,2]
[342260153,1731675043421,-255.91307823,0.0001,2]
[342260196,1731675047080,-14689.21837062,0.0001,2]
[342260197,1731675047091,-1111.11668218,0.0001,2]
[342260198,1731675047120,-840.254994,0.0001,2]
[342260199,1731675079780,-400.0,0.0001,3]
[342260200,1731675079802,-400.0,0.0001,3]
[342260201,1731675105633,-1000.0,0.000109,3]
[342260202,1731675105656,-1000.0,0.000109,3]
[342260203,1731675105682,-1000.0,0.000109,3]
[342260204,1731675105703,-1000.0,0.000109,3]
[342260205,1731675105724,-1000.0,0.000109,3]
[342260206,1731675105746,-1000.0,0.000109,3]
[342260207,1731675105767,-1000.0,0.000109,3]
[342260208,1731675105788,-1000.0,0.000109,3]
[342260209,1731675105810,-532.0,0.000109,3]
[342260210,1731675135844,200.0,0.00010945,30]
[342260211,1731675135874,200.0,0.00010945,30]
[342260212,1731675135903,200.0,0.00010945,30]
[342260213,1731675135960,200.0,0.00010945,30]
[342260214,1731675136007,200.0,0.00010945,30]
[342260215,1731675210320,-689.2655419,0.00012,10]
[342260216,1731675210343,-818.25794188,0.00012,10]
[342260217,1731675210365,-1492.94653993,0.00012,10]
[342260218,1731675263446,200.0,0.00012935,30]
[342260219,1731675263494,200.0,0.00012935,30]
[342260220,1731675263552,200.0,0.00012935,30]
[342260221,1731675263600,200.0,0.00012935,30]
[342260222,1731675263663,200.0,0.00012935,30]
[342260223,1731675388651,200.0,0.0001287,30]
[342260224,1731675388708,200.0,0.0001287,30]
[342260225,1731675388761,200.0,0.0001287,30]
[342260226,1731675388813,200.0,0.0001287,30]
[342260227,1731675388878,200.0,0.0001287,30]
[342260228,1731675514254,200.0,0.00012806,30]
[342260229,1731675514285,200.0,0.00012806,30]
[342260230,1731675514327,200.0,0.00012806,30]
[342260231,1731675514353,200.0,0.00012806,30]
[342260232,1731675514381,205.69579163,0.00012806,30]
[342260234,1731675976919,-20000.0,9.999e-05,3]
[342260235,1731675976941,-20000.0,9.999e-05,3]
[342260236,1731675976963,-20000.0,9.999e-05,3]
[342260237,1731675976984,-20000.0,9.999e-05,3]
[342260238,1731675977005,-20000.0,9.999e-05,3]
[342260239,1731675977026,-20000.0,9.999e-05,3]
[342260240,1731675977052,-20000.0,9.999e-05,3]
[342260241,1731675977074,-10000.0,9.999e-05,3]
[342260250,1731676232892,-942.99,8.219e-05,2]
[342260251,1731676232901,-852.813508,8.728e-05,2]
[342260252,1731676232911,-250.0,8.772e-05,2]